[Event "40th Cappelle Open 2024"]
[Site "Cappelle-la-Grande"]
[Date "2024.03.06"]
[Round "6.3"]
[White "Velten, Paul"]
[Black "Idani, Pouya"]
[Result "1/2-1/2"]
[ECO "D37"]
[WhiteElo "2475"]
[BlackElo "2609"]
[Annotator "TA"]
[PlyCount "66"]
[EventDate "2024.03.02"]
[EventType "swiss"]
[EventCountry "FRA"]
[SourceTitle "playchess.com"]
[Source "ChessBase"]
[SourceQuality "1"]
[TimeControl "40/5400+30:1800+30"]

{[%evp 9,66,22,29,22,31,29,27,23,25,19,29,25,28,22,29,24,26,23,22,12,28,23,24,12,21,2,22,22,19,-6,0,-9,0,0,0,0,0,-27,45,-12,0,0,0,-2,0,-24,-29,-31,-38,-41,-22,-25,-19,-26,-35,-31,0,0,0]} 1. d4 {[%emt 0:00:16]} Nf6 {[%emt 0:00:04]} 2. c4 {[%emt 0:00:26]} e6 {[%emt 0:00:04]} 3. Nf3 {[%emt 0:00:17]} a6 {[%emt 0:00:04]} 4. Nc3 {[%emt 0:01:15]} d5 {[%emt 0:00:04]} 5. cxd5 {[%emt 0:00:14]} exd5 {[%emt 0:00:05]} 6. Bg5 {[%emt 0:00:12]} Be6 {[%emt 0:00:06]} 7. e3 {[%emt 0:00:08]} Nbd7 {[%emt 0:00:04]} 8. Bd3 {[%emt 0:01:02] White has an edge.} c6 {[%emt 0:00:05]} 9. h3 {[%emt 0:00:16]} Bd6 {[%emt 0:00:12]} 10. Bf4 {[%emt 0:00:18]} Qc7 {[%emt 0:00:11]} 11. Bxd6 {[%emt 0:01:49]} Qxd6 {[%emt 0:00:05]} 12. O-O {[%emt 0:00:28]} O-O {[%emt 0:00:03]} 13. Qc2 {[%emt 0:00:24]} g6 {[%emt 0:00:09]} 14. Rac1 {[%emt 0:00:08]} Qe7 {[%emt 0:09:55]} 15. Rfe1 {[%emt 0:00:35]} Rfe8 {[%emt 0:02:33]} 16. b3 {[%emt 0:01:56]} Nh5 {[%emt 0:05:17][%cal Bf6h5,Bh5g7,Bg7f5][%mdl 32]} 17. Qd2 {[%emt 0:01:14]} Qf6 {[%emt 0:10:06][%cal Oe6h3]} 18. Nh2 {[%emt 0:00:26]} Ng7 {[%emt 0:01:35]} 19. Ne2 {[%emt 0:02:33]} Bf5 {[%emt 0:03:43]} 20. Nf4 {[%emt 0:00:21]} Bxd3 {[%emt 0:00:30]} 21. Nxd3 {[%emt 0:00:20]} Nf5 {[%emt 0:00:18]} 22. Ng4 {[%emt 0:02:23]} Qe7 {[%emt 0:08:13]} 23. Nde5 {[%emt 0:13:21] [#] Nxd7 would now be deadly.} Nxe5 (23... h5 $11 24. Nxd7 hxg4 25. hxg4 (25. Nb6 gxh3 26. Nxa8 hxg2 $17) 25... Qxd7 26. gxf5 Qxf5) 24. Nxe5 (24. dxe5 $14 Red8 25. Qc3) 24... Qf6 {[%emt 0:04:53]} 25. e4 {[%emt 0:09:44]} dxe4 {[%emt 0:00:05]} 26. Rxe4 {[%emt 0:00:05]} Re7 {[%emt 0:09:43]} 27. Ng4 {[%emt 0:09:23]} Qd6 {[%emt 0:01:35]} 28. Rxe7 {[%emt 0:00:09]} Nxe7 {[%emt 0:02:02]} 29. Re1 {[%emt 0:02:27]} Nf5 {[%emt 0:04:44][%cal Oh7h5]} 30. Re4 {[%emt 0:02:59]} Rd8 {[%emt 0:04:23][%cal Og8g7]} 31. Nh6+ {[%emt 0:16:11]} Nxh6 {[%emt 0:00:33]} 32. Qxh6 {[%emt 0:00:05]} Qf8 {[%emt 0:01:18]} 33. Qe3 {[%emt 0:00:41]} Qd6 {[%emt 0:03:07] Weighted Error Value: White=0.08 (flawless) /Black=0.08 (flawless) .  Mistake:       	White=1     	Black=1      Inaccurate:     	White=1     	Black=1      OK:         	White=11    	Black=15} 1/2-1/2

[Event "40th Cappelle Open 2024"]
[Site "Cappelle-la-Grande"]
[Date "2024.03.06"]
[Round "6.4"]
[White "Bogdanov, Egor"]
[Black "Lodici, Lorenzo"]
[Result "0-1"]
[ECO "C27"]
[WhiteElo "2409"]
[BlackElo "2558"]
[Annotator "RC"]
[PlyCount "146"]
[EventDate "2024.03.02"]
[EventType "swiss"]
[EventCountry "FRA"]
[SourceTitle "playchess.com"]
[Source "ChessBase"]
[SourceQuality "1"]
[TimeControl "40/5400+30:1800+30"]

1. e4 {[%emt 0:00:02]} e5 {[%emt 0:05:34]} 2. Bc4 {[%emt 0:00:29]} Nf6 {[%emt 0:00:07]} 3. d3 {[%emt 0:00:05]} Bc5 {[%emt 0:01:04]} 4. Nc3 {[%emt 0:00:26]} O-O {[%emt 0:01:23]} 5. Nf3 {[%emt 0:00:23]} d6 {[%emt 0:03:08]} 6. Bg5 {[%emt 0:02:54]} h6 {[%emt 0:01:53]} 7. Bh4 {[%emt 0:01:07]} c6 {[%emt 0:00:06]} 8. Qd2 {[%emt 0:02:27]} b5 {[%emt 0:03:36]} 9. Bb3 {[%emt 0:00:58]} a5 {[%emt 0:00:25]} 10. a4 {[%emt 0:00:35]} b4 {[%emt 0:00:05]} 11. Ne2 {[%emt 0:00:37]} Be6 {[%emt 0:05:38]} 12. Ng3 {[%emt 0:06:41]} Nbd7 {[%emt 0:03:02]} 13. Nf5 {[%emt 0:02:06]} Bxf5 {[%emt 0:04:51]} 14. exf5 {[%emt 0:00:03]} e4 {[%emt 0:09:19]} 15. dxe4 {[%emt 0:00:31]} Qe8 {[%emt 0:01:17]} 16. O-O {[%emt 0:06:07]} Nxe4 {[%emt 0:02:57]} 17. Qf4 {[%emt 0:13:03]} d5 {[%emt 0:00:07]} 18. Rfe1 {[%emt 0:05:23]} Bd6 {[%emt 0:07:12]} 19. Qg4 {[%emt 0:01:22]} Ndf6 {[%emt 0:04:26]} 20. Bxf6 {[%emt 0:04:21]} Nxf6 {[%emt 0:00:29]} 21. Qh3 {[%emt 0:13:35]} Qd7 {[%emt 0:05:06]} 22. c4 {[%emt 0:14:12]} bxc3 {[%emt 0:00:36]} 23. bxc3 {[%emt 0:00:03]} Rab8 {[%emt 0:03:26]} 24. Rab1 {[%emt 0:00:44]} Ne4 {[%emt 0:07:52]} 25. Nd4 {[%emt 0:08:12]} Be5 {[%emt 0:13:30]} 26. Bc2 {[%emt 0:01:00]} Rxb1 {[%emt 0:02:46]} 27. Bxb1 {[%emt 0:02:06]} Rb8 {[%emt 0:00:16]} 28. Bxe4 {[%emt 0:02:36]} dxe4 {[%emt 0:00:02]} 29. f6 {[%emt 0:07:50]} Qxh3 {[%emt 0:03:30]} 30. gxh3 {[%emt 0:00:02]} Bxd4 {[%emt 0:00:07]} 31. cxd4 {[%emt 0:00:02]} Rb4 {[%emt 0:00:18]} 32. Rxe4 {[%emt 0:00:13]} gxf6 {[%emt 0:04:16]} 33. Rf4 {[%emt 0:02:16]} Kg7 {[%emt 0:02:06]} 34. Rf5 {[%emt 0:00:47]} Rxa4 {[%emt 0:00:01]} 35. Rc5 {[%emt 0:00:17]} Kf8 {[%emt 0:03:26]} 36. Rxc6 {[%emt 0:00:25]} Rxd4 {[%emt 0:00:05]} 37. Rxf6 {[%emt 0:00:30]} Kg7 {[%emt 0:00:01]} 38. Ra6 {[%emt 0:00:22]} a4 {[%emt 0:00:01]} 39. Kg2 {[%emt 0:01:16]} h5 {[%emt 0:01:40]} 40. Kf3 {[%emt 0:00:49]} f6 {[%emt 0:01:34]} 41. Ke3 {[%emt 0:32:14]} Rb4 {[%emt 0:05:02]} 42. f4 {[%emt 0:00:00]} Kg6 {[%emt 0:03:41]} 43. Ra5 {[%emt 0:00:00]} h4 {[%emt 0:07:41]} 44. Kf3 {[%emt 0:00:00]} f5 {[%emt 0:00:01]} 45. Ra6+ {[%emt 0:00:00]} Kf7 {[%emt 0:00:08]} 46. Ke3 {[%emt 0:00:00]} Kg7 {[%emt 0:02:06]} 47. Ra8 {[%emt 0:00:00]} Kg6 {[%emt 0:04:46]} 48. Rg8+ {[%emt 0:00:00]} Kf7 {[%emt 0:00:29]} 49. Ra8 {[%emt 0:00:00]} Ke6 {[%emt 0:00:05]} 50. Ra5 {[%emt 0:00:00]} Re4+ {[%emt 0:00:19]} 51. Kf3 {[%emt 0:00:00]} Rc4 {[%emt 0:01:20]} 52. Ke3 {[%emt 0:00:00]} Rb4 {[%emt 0:00:08]} 53. Re5+ {[%emt 0:00:00]} Kf6 {[%emt 0:00:07]} 54. Ra5 {[%emt 0:00:00]} Kg6 {[%emt 0:00:02]} 55. Ra6+ {[%emt 0:02:40]} Kh5 {[%emt 0:00:01]} 56. Rf6 {[%emt 0:03:54]} Rb3+ {[%emt 0:07:09]} 57. Kf2 {[%emt 0:00:02]} Rxh3 {[%emt 0:00:22]} 58. Kg2 {[%emt 0:00:12]} Rb3 {[%emt 0:02:28]} 59. h3 {[%emt 0:00:40]} Rb5 {[%emt 0:00:01]} 60. Ra6 {[%emt 0:00:13]} Rb4 {[%emt 0:00:20]} 61. Kf3 {[%emt 0:00:41]} Rb3+ {[%emt 0:00:22]} 62. Kg2 {[%emt 0:01:08]} a3 {[%emt 0:00:01]} 63. Ra5 {[%emt 0:01:22]} Kg6 {[%emt 0:00:16]} 64. Ra6+ {[%emt 0:00:05]} Kf7 {[%emt 0:00:06]} 65. Ra5 {[%emt 0:00:11]} Ke6 {[%emt 0:00:06]} 66. Re5+ {[%emt 0:01:13]} Kf6 {[%emt 0:00:08]} 67. Ra5 {[%emt 0:00:13]} Rb2+ {[%emt 0:01:59]} 68. Kf3 {[%emt 0:00:02]} Rh2 {[%emt 0:00:23]} 69. Ra6+ {[%emt 0:00:13]} Kg7 {[%emt 0:00:41]} 70. Ra7+ {[%emt 0:02:30]} Kg6 {[%emt 0:00:15]} 71. Ra6+ {[%emt 0:00:04]} Kh5 {[%emt 0:00:10]} 72. Rf6 {[%emt 0:00:05]} Rxh3+ {[%emt 0:00:05]} 73. Kg2 {[%emt 0:00:02]} Rg3+ {[%emt 0:00:06]} 0-1

[Event "40th Cappelle Open 2024"]
[Site "Cappelle-la-Grande"]
[Date "2024.03.06"]
[Round "6.5"]
[White "Can, Emre"]
[Black "Enchev, Ivajlo"]
[Result "1-0"]
[ECO "C84"]
[WhiteElo "2551"]
[BlackElo "2425"]
[Annotator "TA"]
[PlyCount "77"]
[EventDate "2024.03.02"]
[EventType "swiss"]
[EventCountry "FRA"]
[SourceTitle "playchess.com"]
[Source "ChessBase"]
[SourceQuality "1"]
[TimeControl "40/5400+30:1800+30"]

{[%evp 15,77,13,23,12,37,49,40,24,28,15,31,13,70,72,80,20,29,16,14,11,53,56,52,52,107,85,72,34,41,46,252,256,242,97,89,89,100,89,113,105,112,112,105,106,108,108,123,126,1740,1470,2695,2353,5057,4827,29966,29965,29966,29967,29969,29974,29972,29972,29937,0]} 1. e4 {[%emt 0:00:05]} e5 {[%emt 0:05:18]} 2. Nf3 {[%emt 0:00:33]} Nc6 {[%emt 0:00:05]} 3. Bb5 {[%emt 0:00:25][%cal Bf1b5,Bb5a4,Ba4b3][%mdl 32]} a6 {[%emt 0:00:07]} 4. Ba4 {[%emt 0:00:06]} Nf6 {[%emt 0:00:05]} 5. O-O {[%emt 0:00:36]} Be7 {[%emt 0:00:11]} 6. d3 {[%emt 0:00:16]} b5 {[%emt 0:00:35]} 7. Bb3 {[%emt 0:00:07]} d6 {[%emt 0:00:17]} 8. c3 {[%emt 0:00:29]} O-O {[%emt 0:00:44]} 9. h3 {[%emt 0:00:09]} Be6 {[%emt 0:08:57]} 10. Bxe6 {[%emt 0:00:51]} fxe6 {[%emt 0:00:07]} 11. Re1 {[%emt 0:00:11] Weiß steht etwas besser.} d5 {[%emt 0:06:52]} 12. exd5 {[%emt 0:19:50]} Qxd5 {[%emt 0:00:07]} 13. Qb3 {[%emt 0:00:15]} (13. Qe2 {vereinfacht} Rfd8 14. Nbd2 Qxd3 15. Nxe5 Qxe2 16. Rxe2 Nxe5 17. Rxe5 Kf7 18. Re1) 13... e4 {[%emt 0:05:28]} (13... Rfd8 $11) 14. dxe4 $14 {[%emt 0:02:49]} Nxe4 {[%emt 0:01:00] [#]} 15. Be3 {[%emt 0:10:06]} (15. Nbd2 $1 $16 {[%cal Rd2e4]} Nf6 16. Rxe6) 15... Rad8 {[%emt 0:01:53]} 16. Nbd2 {[%emt 0:02:15]} (16. Qxd5 {vereinfacht} exd5 17. Nbd2 Nxd2 18. Bxd2 Rde8 19. a4) 16... Nxd2 {[%emt 0:09:24]} 17. Nxd2 {[%emt 0:00:19]} (17. Qxd5 {vereinfacht} exd5 18. Bxd2 Rde8 19. a4) 17... Ne5 {[%emt 0:03:03]} (17... Qf5 {vereinfacht} 18. a4 Rd5 19. axb5 axb5 20. Nf3 Qg6) 18. Bd4 {[%emt 0:07:00][%cal Be3d4,Bd4g7,Bg7h6][%mdl 32]} Nd3 {[%emt 0:01:16]} 19. Rxe6 {[%emt 0:03:57]} c5 {[%emt 0:04:30]} (19... Qxb3 $14 20. Nxb3 Bd6) 20. Qxd5 {[%emt 0:02:19]} Rxd5 {[%emt 0:00:03]} 21. Bxg7 {[%emt 0:07:24]} Rxf2 {[%emt 0:04:04]} 22. Bh6 {[%emt 0:06:25] Pariert Rg5.} Bg5 {[%emt 0:04:04]} ({Besser ist} 22... Kf7 $1 $14 23. Rxa6 Re5) 23. Ne4 $18 {[%emt 0:04:25]} Kf7 {[%emt 0:01:42]} 24. Nxf2 {[%emt 0:07:27]} ({Schwächer ist} 24. Nxg5+ Rxg5 25. Bxg5 (25. Rxa6 $2 Rfxg2+ 26. Kh1 Nf2#) 25... Kxe6 $11) (24. Bxg5 $6 Kxe6 25. Nxf2 Nxf2 $16) (24. Rd6 $18 Rxd6 25. Nxd6+ (25. Bxg5 Rd5 $16) 25... Ke6 26. Bxg5 (26. Ne4 Bxh6 27. Nxf2 Be3 $16) 26... Rxb2 27. Ne8) 24... Kxe6 $16 {[%emt 0:00:14]} 25. Bxg5 {[%emt 0:00:21] Droht stark Nxd3.} Nxf2 {[%emt 0:00:06]} 26. Kxf2 {[%emt 0:00:09]} Rxg5 $18 {[%emt 0:00:03][%mdl 4096] Endspiel. KR-KR} 27. Re1+ {[%emt 0:00:50]} Kf7 {[%emt 0:03:41]} 28. Re3 {[%emt 0:06:36]} Rd5 {[%emt 0:00:30]} 29. Ke2 {[%emt 0:00:07]} c4 {[%emt 0:00:52]} 30. Re4 {[%emt 0:00:24]} Kf6 {[%emt 0:02:01]} 31. Rd4 {[%emt 0:02:12]} Rxd4 {[%emt 0:06:39][%mdl 8192]} (31... Re5+ $16 32. Kf2 Rf5+ 33. Ke3 Re5+ 34. Kf3 Re1 35. Rd6+ Ke5 36. Rxa6 Rf1+ 37. Ke3 Re1+ 38. Kd2 Rg1) 32. cxd4 $16 {[%emt 0:00:02] KP-KP} b4 {[%emt 0:03:39]} 33. g4 {[%emt 0:05:01]} Kg5 {[%emt 0:12:29]} 34. Ke3 {[%emt 0:02:14]} a5 {[%emt 0:00:06]} 35. a4 {[%emt 0:01:19] Weiß setzt Matt.} Kf6 {[%emt 0:03:41]} 36. h4 {[%emt 0:01:55]} h6 {[%emt 0:03:09]} 37. d5 {[%emt 0:01:11]} ({Falsch wäre} 37. Ke4 $2 b3 38. h5 c3 39. bxc3 b2 $19) 37... Ke5 {[%emt 0:00:24] [#]} 38. d6 $1 {[%emt 0:00:29][%mdl 512]} Kxd6 {[%emt 0:00:06]} 39. Ke4 $2 {[%emt 0:08:51][%mdl 32768] Gewichteter Fehlerwert: Weiß=0.17 (sehr präzise) /Schwarz=0.51.  Verlustzug:     	---       	Schwarz=2     Fehler:       	Weiß=2     	Schwarz=2     Ungenau:       	Weiß=1     	Schwarz=2     OK:         	Weiß=9     	Schwarz=7     Bester:       	Weiß=3     	Schwarz=2    . Fehler vom Sensorbrett (Ke4/e5)?} (39. Kd4 {setzt Matt} c3 40. bxc3 bxc3 41. Kxc3 Ke6 42. Kc4 Ke5 43. Kb5 Kf4 44. g5 (44. Kxa5 Kxg4 45. Kb5 Kxh4 46. a5 h5 47. a6 Kg4 48. a7 h4)) 1-0

[Event "40th Cappelle Open 2024"]
[Site "Cappelle-la-Grande"]
[Date "2024.03.06"]
[Round "6.6"]
[White "Vlachos, Anatole"]
[Black "Loiseau, Quentin"]
[Result "1/2-1/2"]
[ECO "B11"]
[WhiteElo "2479"]
[BlackElo "2412"]
[Annotator "RC"]
[PlyCount "279"]
[EventDate "2024.03.02"]
[EventType "swiss"]
[EventCountry "FRA"]
[SourceTitle "playchess.com"]
[Source "ChessBase"]
[SourceQuality "1"]
[TimeControl "40/5400+30:1800+30"]

1. e4 {[%emt 0:00:02]} c6 {[%emt 0:02:20]} 2. Nc3 {[%emt 0:00:08]} d5 {[%emt 0:00:12]} 3. Nf3 {[%emt 0:00:03]} dxe4 {[%emt 0:00:22]} 4. Nxe4 {[%emt 0:00:04]} Nf6 {[%emt 0:00:06]} 5. Qe2 {[%emt 0:00:04]} Nxe4 {[%emt 0:00:29]} 6. Qxe4 {[%emt 0:00:04]} Nd7 {[%emt 0:00:06]} 7. d4 {[%emt 0:00:05]} Nf6 {[%emt 0:00:20]} 8. Qf4 {[%emt 0:00:04]} Nd5 {[%emt 0:04:37]} 9. Qd2 {[%emt 0:00:04]} Bf5 {[%emt 0:00:06]} 10. Bd3 {[%emt 0:00:11]} Bxd3 {[%emt 0:01:09]} 11. Qxd3 {[%emt 0:00:04]} e6 {[%emt 0:00:22]} 12. O-O {[%emt 0:00:06]} Be7 {[%emt 0:05:14]} 13. Bd2 {[%emt 0:12:29]} O-O {[%emt 0:03:40]} 14. c4 {[%emt 0:00:03]} Nf6 {[%emt 0:00:07]} 15. b4 {[%emt 0:00:12]} c5 {[%emt 0:02:34]} 16. bxc5 {[%emt 0:04:18]} Bxc5 {[%emt 0:00:04]} 17. Rab1 {[%emt 0:15:30]} e5 {[%emt 0:02:48]} 18. Bg5 {[%emt 0:04:48]} Bxd4 {[%emt 0:03:24]} 19. Nxd4 {[%emt 0:00:05]} Qxd4 {[%emt 0:01:12]} 20. Qxd4 {[%emt 0:00:04]} exd4 {[%emt 0:00:03]} 21. Rxb7 {[%emt 0:00:05]} Rac8 {[%emt 0:09:18]} 22. Rc1 {[%emt 0:18:26]} Ne4 {[%emt 0:03:54]} 23. Be7 {[%emt 0:00:14]} Rfe8 {[%emt 0:00:12]} 24. Rxa7 {[%emt 0:02:55]} Nc3 {[%emt 0:01:10]} 25. Kf1 {[%emt 0:01:05]} Rxc4 {[%emt 0:00:12]} 26. Rd7 {[%emt 0:01:22]} h6 {[%emt 0:15:09]} 27. a3 {[%emt 0:00:16]} Rec8 {[%emt 0:02:55]} 28. Bb4 {[%emt 0:12:30]} Na2 {[%emt 0:03:42]} 29. Rd8+ {[%emt 0:01:30]} Rxd8 {[%emt 0:00:02]} 30. Rxc4 {[%emt 0:00:07]} Nxb4 {[%emt 0:00:37]} 31. axb4 {[%emt 0:00:01]} d3 {[%emt 0:00:06]} 32. Ke1 {[%emt 0:00:04]} d2+ {[%emt 0:01:34]} 33. Kd1 {[%emt 0:00:10]} Rd3 {[%emt 0:00:01]} 34. Re4 {[%emt 0:00:09]} Kf8 {[%emt 0:07:59]} 35. Re3 {[%emt 0:00:05]} Rd4 {[%emt 0:00:09]} 36. Rb3 {[%emt 0:00:01]} Ke7 {[%emt 0:00:16]} 37. Rb2 {[%emt 0:00:07]} Ke6 {[%emt 0:00:58]} 38. b5 {[%emt 0:01:45]} Rd5 {[%emt 0:00:37]} 39. b6 {[%emt 0:25:30]} Rd8 {[%emt 0:02:21]} 40. h4 {[%emt 0:05:02]} Rb8 {[%emt 0:01:55]} 41. Rb3 {[%emt 0:03:17]} Kd6 {[%emt 0:08:26]} 42. Rg3 {[%emt 0:02:01]} Rxb6 {[%emt 0:05:30]} 43. Rxg7 {[%emt 0:00:09]} Ke7 {[%emt 0:00:02]} 44. Kxd2 {[%emt 0:01:18]} Rb4 {[%emt 0:00:42]} 45. g3 {[%emt 0:00:31]} Kf8 {[%emt 0:00:03]} 46. Rh7 {[%emt 0:00:09]} Rb6 {[%emt 0:00:04]} 47. Rh8+ {[%emt 0:00:04]} Kg7 {[%emt 0:00:03]} 48. Re8 {[%emt 0:00:26]} Rb3 {[%emt 0:00:26]} 49. Re4 {[%emt 0:02:01]} Ra3 {[%emt 0:00:41]} 50. Ke2 {[%emt 0:00:05]} Rb3 {[%emt 0:00:07]} 51. Re3 {[%emt 0:01:03]} Rb2+ {[%emt 0:01:01]} 52. Kf3 {[%emt 0:00:01]} Ra2 {[%emt 0:00:32]} 53. Re4 {[%emt 0:00:19]} Rb2 {[%emt 0:00:10]} 54. Rf4 {[%emt 0:00:08]} Ra2 {[%emt 0:00:10]} 55. Kg4 {[%emt 0:00:11]} Rb2 {[%emt 0:00:11]} 56. Rf5 {[%emt 0:00:22]} Kg6 {[%emt 0:01:26]} 57. f4 {[%emt 0:00:54]} Rb3 {[%emt 0:00:28]} 58. Ra5 {[%emt 0:00:06]} Kg7 {[%emt 0:00:37]} 59. Ra6 {[%emt 0:00:42]} Rb4 {[%emt 0:00:33]} 60. Ra3 {[%emt 0:02:14]} Kg6 {[%emt 0:01:36]} 61. Rd3 {[%emt 0:03:22]} Ra4 {[%emt 0:01:11]} 62. h5+ {[%emt 0:01:19]} Kg7 {[%emt 0:01:39]} 63. Rd6 {[%emt 0:00:09]} Rb4 {[%emt 0:00:49]} 64. Kf3 {[%emt 0:00:24]} Rb3+ {[%emt 0:00:36]} 65. Kf2 {[%emt 0:00:02]} Rb5 {[%emt 0:01:38]} 66. g4 {[%emt 0:00:09]} Ra5 {[%emt 0:00:35]} 67. Kf3 {[%emt 0:01:43]} Rb5 {[%emt 0:08:17]} 68. Ke4 {[%emt 0:00:57]} Ra5 {[%emt 0:04:58]} 69. Rd5 {[%emt 0:00:40]} Ra1 {[%emt 0:05:07]} 70. Kf5 {[%emt 0:00:23]} Rh1 {[%emt 0:00:26]} 71. Rd6 {[%emt 0:00:22]} Rh2 {[%emt 0:00:24]} 72. Ke4 {[%emt 0:00:53]} Rh4 {[%emt 0:01:40]} 73. Kf5 {[%emt 0:01:01]} Rh1 {[%emt 0:00:05]} 74. Rd4 {[%emt 0:01:05]} Rh2 {[%emt 0:01:43]} 75. Ke5 {[%emt 0:00:10]} Re2+ {[%emt 0:00:27]} 76. Re4 {[%emt 0:01:13]} Ra2 {[%emt 0:00:47]} 77. Rd4 {[%emt 0:02:44]} Re2+ {[%emt 0:00:05]} 78. Kf5 {[%emt 0:00:38]} Rh2 {[%emt 0:00:24]} 79. Rd3 {[%emt 0:00:33]} Rh1 {[%emt 0:00:57]} 80. Re3 {[%emt 0:00:35]} Rh2 {[%emt 0:00:56]} 81. Ke4 {[%emt 0:00:03]} Kf6 {[%emt 0:00:51]} 82. Kf3 {[%emt 0:00:06]} Ra2 {[%emt 0:03:19]} 83. Rd3 {[%emt 0:00:36]} Ra5 {[%emt 0:01:42]} 84. Rd6+ {[%emt 0:06:20]} Kg7 {[%emt 0:03:25]} 85. Rd3 {[%emt 0:00:09]} Kf6 {[%emt 0:00:05]} 86. Kg3 {[%emt 0:00:03]} Rb5 {[%emt 0:00:58]} 87. Kh4 {[%emt 0:00:40]} Rb4 {[%emt 0:00:12]} 88. Kg3 {[%emt 0:00:27]} Rb5 {[%emt 0:00:11]} 89. Ra3 {[%emt 0:00:05]} Rc5 {[%emt 0:00:10]} 90. Kf3 {[%emt 0:00:07]} Kg7 {[%emt 0:03:46]} 91. Ra4 {[%emt 0:00:11]} Rb5 {[%emt 0:00:20]} 92. Ke4 {[%emt 0:00:04]} Rb1 {[%emt 0:01:20]} 93. Ra5 {[%emt 0:00:35]} Rh1 {[%emt 0:01:38]} 94. Ra6 {[%emt 0:00:48]} Rh4 {[%emt 0:01:04]} 95. Kf3 {[%emt 0:00:06]} Rh1 {[%emt 0:00:06]} 96. f5 {[%emt 0:00:12]} Rf1+ {[%emt 0:01:09]} 97. Ke4 {[%emt 0:00:08]} Re1+ {[%emt 0:00:35]} 98. Kd5 {[%emt 0:00:02]} Rd1+ {[%emt 0:00:32]} 99. Kc5 {[%emt 0:00:24]} Rc1+ {[%emt 0:00:33]} 100. Kd5 {[%emt 0:02:19]} Rd1+ {[%emt 0:00:05]} 101. Ke5 {[%emt 0:00:24]} Re1+ {[%emt 0:00:03]} 102. Kf4 {[%emt 0:00:10]} Rf1+ {[%emt 0:00:30]} 103. Ke3 {[%emt 0:00:02]} Re1+ {[%emt 0:08:19]} 104. Kf2 {[%emt 0:00:08]} Re8 {[%emt 0:00:02]} 105. Kf3 {[%emt 0:00:05]} Rb8 {[%emt 0:00:08]} 106. f6+ {[%emt 0:00:35]} Kg8 {[%emt 0:00:03]} 107. Rd6 {[%emt 0:00:25]} Ra8 {[%emt 0:00:23]} 108. Ke4 {[%emt 0:00:18]} Ra4+ {[%emt 0:00:18]} 109. Rd4 {[%emt 0:00:05]} Ra8 {[%emt 0:00:06]} 110. Rd5 {[%emt 0:00:21]} Rb8 {[%emt 0:00:44]} 111. Ke5 {[%emt 0:00:15]} Re8+ {[%emt 0:00:05]} 112. Kf4 {[%emt 0:02:23]} Ra8 {[%emt 0:00:05]} 113. Kf5 {[%emt 0:02:05]} Rb8 {[%emt 0:00:06]} 114. Re5 {[%emt 0:01:02]} Ra8 {[%emt 0:00:04]} 115. Rc5 {[%emt 0:01:37]} Rb8 {[%emt 0:00:16]} 116. Ke5 {[%emt 0:00:05]} Rd8 {[%emt 0:00:38]} 117. Rc6 {[%emt 0:00:39]} Kf8 {[%emt 0:00:55]} 118. Rc5 {[%emt 0:00:25]} Kg8 {[%emt 0:00:06]} 119. Ke4 {[%emt 0:00:09]} Kf8 {[%emt 0:00:43]} 120. g5 {[%emt 0:00:31]} hxg5 {[%emt 0:00:10]} 121. Rxg5 {[%emt 0:00:30]} Rd1 {[%emt 0:00:17]} 122. Rd5 {[%emt 0:02:04]} Re1+ {[%emt 0:00:10]} 123. Kf5 {[%emt 0:01:26]} Re8 {[%emt 0:03:17]} 124. Kg5 {[%emt 0:00:51]} Ra8 {[%emt 0:00:28]} 125. Kh6 {[%emt 0:00:06]} Kg8 {[%emt 0:00:02]} 126. Rg5+ {[%emt 0:00:10]} Kh8 {[%emt 0:00:03]} 127. Rb5 {[%emt 0:02:01]} Kg8 {[%emt 0:00:07]} 128. Rb4 {[%emt 0:00:26]} Kh8 {[%emt 0:00:13]} 129. Rb7 {[%emt 0:00:33]} Kg8 {[%emt 0:00:19]} 130. Re7 {[%emt 0:00:24]} Rb8 {[%emt 0:00:04]} 131. Kg5 {[%emt 0:00:06]} Rb5+ {[%emt 0:00:58]} 132. Kg4 {[%emt 0:00:05]} Rb8 {[%emt 0:00:26]} 133. Kf5 {[%emt 0:00:13]} Ra8 {[%emt 0:00:05]} 134. Rd7 {[%emt 0:02:21]} Ra5+ {[%emt 0:00:22]} 135. Kg4 {[%emt 0:00:05]} Ra8 {[%emt 0:00:05]} 136. Rd5 {[%emt 0:00:06]} Kh8 {[%emt 0:00:47]} 137. Rg5 {[%emt 0:00:08]} Ra4+ {[%emt 0:00:09]} 138. Kg3 {[%emt 0:00:13]} Ra3+ {[%emt 0:00:10]} 139. Kh4 {[%emt 0:00:42]} Rf3 {[%emt 0:00:09]} 140. Ra5 {[%emt 0:00:11]} 1/2-1/2